lending/lending_fUSD_20251016
["ID","MTS","AMOUNT","RATE_DAILY","PERIOD"]
[391372750,1760583040448,-268.700044,0.000197,7]
[391372752,1760583040460,-151.0,0.000197,7]
[391372754,1760583040470,-316.206409,0.000197,7]
[391372756,1760583040480,-268.700044,0.000197,7]
[391372758,1760583040489,-151.0,0.000197,7]
[391372759,1760583040498,-151.0,0.000197,2]
[391372761,1760583040507,-316.206409,0.000197,7]
[391372763,1760583040517,-268.700044,0.000197,7]
[391372764,1760583040526,-151.0,0.000197,7]
[391372765,1760583040536,-268.700044,0.000197,7]
[391372766,1760583040546,-316.206409,0.000197,7]
[391372767,1760583040555,-151.0,0.000197,7]
[391372768,1760583040565,-151.0,0.000197,7]
[391372769,1760583040575,-326.879962,0.000197,7]
[391372770,1760583040584,-326.879962,0.000197,7]
[391372771,1760583040593,-156.79,0.00019784,2]
[391372772,1760583040603,-179.94,0.0001989,2]
[391372773,1760583040614,-73422.19667846,0.0002,5]
[391372774,1760583040623,-242.29097911,0.0002,20]
[391372775,1760583040633,-2128.49879347,0.0002,3]
[391372776,1760583040643,-880.39893803,0.0002,2]
[391372777,1760583040652,-1000.64578945,0.00020068,2]
[391372778,1760583040661,-411.12153691,0.00020116,2]
[391372779,1760583040671,-502.0,0.00020137,2]
[391372780,1760583040681,-201.37228009,0.00020154,2]
[391372781,1760583040690,-766.03545096,0.00020173,2]
[391372782,1760583040699,-434.03,0.00020187,2]
[391372783,1760583040710,-160.47806306,0.00020242,2]
[391372784,1760583040719,-18816.84716697,0.000207,2]
[391372785,1760583040729,-179.94,0.00020795,2]
[391372786,1760583040739,-11327.16822505,0.0002085,2]
[391372787,1760583040749,-12868.36606463,0.00020889,2]
[391372788,1760583040758,-19999.99,0.00020951,2]
[391372789,1760583040768,-150.83,0.0002099,2]
[391372790,1760583040778,-565.44295021,0.00021,2]
[391372791,1760583040787,-6667.64452219,0.00021,2]
[391372792,1760583040798,-417.0,0.000211,2]
[391372793,1760583040807,-230.53339206,0.00021148,2]
[391372794,1760583040817,-166.66,0.00021173,2]
[391372795,1760583040827,-168.79053038,0.00021306,2]
[391372796,1760583040837,-844.5320582,0.00021314,2]
[391372797,1760583040846,-1057.3980631,0.00021325,2]
[391372798,1760583040856,-2137.7020636,0.00021361,2]
[391372799,1760583040866,-11044.9952632,0.00021378,2]
[391372800,1760583040876,-283.5355218,0.00021381,2]
[391372801,1760583040886,-201.37228009,0.00021487,2]
[391372802,1760583040896,-180.77914408,0.00021499,2]
[391372803,1760583040906,-57237.72451278,0.000215,2]
[391372804,1760583040915,-219.28690217,0.000215,2]
[391372805,1760583040925,-160.47806306,0.00021562,2]
[391372806,1760583040934,-150.83,0.0002163,2]
[391372807,1760583040944,-319.0,0.0002164,2]
[391372808,1760583040954,-319.0,0.0002164,2]
[391372809,1760583040964,-153.0,0.0002164,2]
[391372810,1760583040975,-153.0,0.0002164,2]
[391372811,1760583040986,-153.0,0.0002164,2]
[391372812,1760583040997,-342.0,0.0002164,2]
[391372813,1760583041007,-342.0,0.0002164,2]
[391372814,1760583041017,-342.0,0.0002164,2]
[391372815,1760583041027,-342.0,0.0002164,2]
[391372816,1760583041037,-342.0,0.0002164,2]
[391372817,1760583041047,-342.0,0.0002164,2]
[391372818,1760583041058,-342.0,0.0002164,2]
[391372819,1760583041068,-342.0,0.0002164,2]
[391372820,1760583041078,-342.0,0.0002164,2]
[391372821,1760583041087,-342.0,0.0002164,2]
[391372822,1760583041097,-342.0,0.0002164,2]
[391372823,1760583041106,-342.0,0.0002164,2]
[391372824,1760583041116,-218.0,0.0002164,2]
[391372825,1760583041126,-218.0,0.0002164,2]
[391372826,1760583041136,-218.0,0.0002164,2]
[391372827,1760583041146,-218.0,0.0002164,2]
[391372828,1760583041156,-218.0,0.0002164,2]
[391372829,1760583041168,-218.0,0.0002164,2]
[391372830,1760583041178,-218.0,0.0002164,2]
[391372831,1760583041188,-218.0,0.0002164,2]
[391372832,1760583041198,-218.0,0.0002164,2]
[391372833,1760583041209,-218.0,0.0002164,2]
[391372834,1760583041219,-218.0,0.0002164,2]
[391372835,1760583041229,-218.0,0.0002164,2]
[391372836,1760583041240,-218.0,0.0002164,2]
[391372837,1760583041250,-306.0,0.0002164,2]
[391372838,1760583041261,-306.0,0.0002164,2]
[391372839,1760583041272,-306.0,0.0002164,2]
[391372840,1760583041281,-306.0,0.0002164,2]
[391372841,1760583041291,-306.0,0.0002164,2]
[391372842,1760583041300,-306.0,0.0002164,2]
[391372843,1760583041310,-306.0,0.0002164,2]
[391372844,1760583041319,-306.0,0.0002164,2]
[391372845,1760583041329,-306.0,0.0002164,2]
[391372846,1760583041341,-306.0,0.0002164,2]
[391372847,1760583041350,-306.0,0.0002164,2]
[391372848,1760583041359,-306.0,0.0002164,2]
[391372849,1760583041369,-306.0,0.0002164,2]
[391372850,1760583041378,-306.0,0.0002164,2]
[391372851,1760583041388,-306.0,0.0002164,2]
[391372852,1760583041398,-742.0,0.0002164,2]
[391372853,1760583041407,-742.0,0.0002164,2]
[391372854,1760583041416,-742.0,0.0002164,2]
[391372855,1760583041426,-742.0,0.0002164,2]
[391372856,1760583041435,-742.0,0.0002164,2]
[391372857,1760583041445,-742.0,0.0002164,2]
[391372858,1760583041455,-742.0,0.0002164,2]
[391372859,1760583041467,-742.0,0.0002164,2]
[391372860,1760583041477,-742.0,0.0002164,2]
[391372861,1760583041487,-742.0,0.0002164,2]
[391372862,1760583041496,-742.0,0.0002164,2]
[391372863,1760583041507,-742.0,0.0002164,2]
[391372864,1760583041517,-742.0,0.0002164,2]
[391372865,1760583041528,-2294.0,0.0002164,2]
[391372866,1760583041537,-2294.0,0.0002164,2]
[391372867,1760583041547,-2294.0,0.0002164,2]
[391372868,1760583041558,-2294.0,0.0002164,2]
[391372869,1760583041567,-2294.0,0.0002164,2]
[391372870,1760583041577,-2294.0,0.0002164,2]
[391372871,1760583041586,-2294.0,0.0002164,2]
[391372872,1760583041596,-2294.0,0.0002164,2]
[391372873,1760583041605,-2294.0,0.0002164,2]
[391372874,1760583041615,-2294.0,0.0002164,2]
[391372875,1760583041624,-2294.0,0.0002164,2]
[391372876,1760583041634,-2294.0,0.0002164,2]
[391372877,1760583041644,-2294.0,0.0002164,2]
[391372878,1760583041654,-1176.0,0.0002164,2]
[391372879,1760583041663,-1176.0,0.0002164,2]
[391372880,1760583041672,-1176.0,0.0002164,2]
[391372881,1760583041681,-1176.0,0.0002164,2]
[391372882,1760583041691,-1176.0,0.0002164,2]
[391372883,1760583041700,-1176.0,0.0002164,2]
[391372884,1760583041713,-1176.0,0.0002164,2]
[391372885,1760583041723,-1176.0,0.0002164,2]
[391372886,1760583041732,-1176.0,0.0002164,2]
[391372887,1760583041742,-1176.0,0.0002164,2]
[391372888,1760583041752,-1176.0,0.0002164,2]
[391372889,1760583041762,-1176.0,0.0002164,2]
[391372890,1760583041771,-1176.0,0.0002164,2]
[391372891,1760583041780,-831.0,0.0002164,2]
[391372892,1760583041790,-831.0,0.0002164,2]
[391372893,1760583041799,-831.0,0.0002164,2]
[391372894,1760583041809,-831.0,0.0002164,2]
[391372895,1760583041819,-831.0,0.0002164,2]
[391372896,1760583041828,-831.0,0.0002164,2]
[391372897,1760583041838,-831.0,0.0002164,2]
[391372898,1760583041848,-831.0,0.0002164,2]
[391372899,1760583041858,-831.0,0.0002164,2]
[391372900,1760583041868,-831.0,0.0002164,2]
[391372901,1760583041877,-831.0,0.0002164,2]
[391372902,1760583041888,-831.0,0.0002164,2]
[391372903,1760583041898,-831.0,0.0002164,2]
[391372904,1760583041907,-565.0,0.0002164,2]
[391372905,1760583041917,-565.0,0.0002164,2]
[391372906,1760583041927,-565.0,0.0002164,2]
[391372907,1760583041936,-565.0,0.0002164,2]
[391372908,1760583041946,-565.0,0.0002164,2]
[391372909,1760583041956,-565.0,0.0002164,2]
[391372910,1760583041971,-565.0,0.0002164,2]
[391372911,1760583041981,-565.0,0.0002164,2]
[391372912,1760583041992,-565.0,0.0002164,2]
[391372913,1760583042002,-565.0,0.0002164,2]
[391372914,1760583042012,-565.0,0.0002164,2]
[391372915,1760583042021,-565.0,0.0002164,2]
[391372916,1760583042031,-565.0,0.0002164,2]
[391372917,1760583042041,-1025.0,0.0002164,2]
[391372918,1760583042050,-1025.0,0.0002164,2]
[391372919,1760583042060,-1025.0,0.0002164,2]
[391372920,1760583042069,-1025.0,0.0002164,2]
[391372921,1760583042079,-1025.0,0.0002164,2]
[391372922,1760583042089,-1025.0,0.0002164,2]
[391372923,1760583042099,-1025.0,0.0002164,2]
[391372924,1760583042108,-1025.0,0.0002164,2]
[391372925,1760583042117,-1025.0,0.0002164,2]
[391372926,1760583042127,-1025.0,0.0002164,2]
[391372927,1760583042136,-1025.0,0.0002164,2]
[391372928,1760583042146,-1025.0,0.0002164,2]
[391372929,1760583042156,-1025.0,0.0002164,2]
[391372930,1760583042165,-421.0,0.0002164,2]
[391372931,1760583042175,-421.0,0.0002164,2]
[391372932,1760583042184,-421.0,0.0002164,2]
[391372933,1760583042194,-421.0,0.0002164,2]
[391372934,1760583042203,-421.0,0.0002164,2]
[391372935,1760583042213,-421.0,0.0002164,2]
[391372936,1760583042222,-421.0,0.0002164,2]
[391372937,1760583042232,-421.0,0.0002164,2]
[391372938,1760583042241,-421.0,0.0002164,2]
[391372939,1760583042251,-421.0,0.0002164,2]
[391372940,1760583042262,-421.0,0.0002164,2]
[391372941,1760583042272,-421.0,0.0002164,2]
[391372942,1760583042282,-421.0,0.0002164,2]
[391372943,1760583042291,-1017.0,0.00021641,2]
[391372944,1760583042301,-1017.0,0.00021641,2]
[391372945,1760583042311,-1017.0,0.00021641,2]
[391372946,1760583042320,-1017.0,0.00021641,2]
[391372947,1760583042329,-1017.0,0.00021641,2]
[391372948,1760583042339,-1017.0,0.00021641,2]
[391372949,1760583042348,-1017.0,0.00021641,2]
[391372950,1760583042358,-1017.0,0.00021641,2]
[391372951,1760583042367,-1017.0,0.00021641,2]
[391372952,1760583042376,-1017.0,0.00021641,2]
[391372953,1760583042385,-1017.0,0.00021641,2]
[391372954,1760583042394,-1017.0,0.00021641,2]
[391372955,1760583042404,-305.0,0.00021641,2]
[391372956,1760583042414,-305.0,0.00021641,2]
[391372957,1760583042424,-305.0,0.00021641,2]
[391372958,1760583042434,-305.0,0.00021641,2]
[391372959,1760583042446,-305.0,0.00021641,2]
[391372960,1760583042455,-305.0,0.00021641,2]
[391372961,1760583042466,-305.0,0.00021641,2]
[391372962,1760583042475,-305.0,0.00021641,2]
[391372963,1760583042484,-305.0,0.00021641,2]
[391372964,1760583042493,-305.0,0.00021641,2]
[391372965,1760583042503,-305.0,0.00021641,2]
[391372966,1760583042512,-305.0,0.00021641,2]
[391372967,1760583042522,-305.0,0.00021641,2]
[391372968,1760583042531,-956.0,0.00021641,2]
[391372969,1760583042542,-956.0,0.00021641,2]
[391372970,1760583042551,-956.0,0.00021641,2]
[391372971,1760583042560,-956.0,0.00021641,2]
[391372972,1760583042574,-956.0,0.00021641,2]
[391372973,1760583042584,-956.0,0.00021641,2]
[391372974,1760583042593,-956.0,0.00021641,2]
[391372975,1760583042602,-956.0,0.00021641,2]
[391372976,1760583042612,-956.0,0.00021641,2]
[391372977,1760583042621,-956.0,0.00021641,2]
[391372978,1760583042631,-956.0,0.00021641,2]
[391372979,1760583042640,-241.0,0.00021641,2]
[391372980,1760583042650,-241.0,0.00021641,2]
[391372981,1760583042659,-241.0,0.00021641,2]
[391372982,1760583042669,-241.0,0.00021641,2]
[391372983,1760583042678,-241.0,0.00021641,2]
[391372984,1760583042687,-241.0,0.00021641,2]
[391372985,1760583042697,-241.0,0.00021641,2]
[391372986,1760583042707,-241.0,0.00021641,2]
[391372987,1760583042718,-150.0,0.00021673,2]
[391372988,1760583042727,-476.70659007,0.000217,2]
[391372989,1760583042739,-1000.0,0.0002175,2]
[391372990,1760583042748,-1200.0,0.000219,7]
[391372991,1760583042759,-600.0,0.00021918,2]
[391372992,1760583042769,-766.03545096,0.00021947,2]
[391372993,1760583042779,-77167.99946877,0.00022,4]
[391372994,1760583042789,-26058.39,0.00022,7]
[391372995,1760583042799,-311.94573148,0.00022,7]
[391372996,1760583042808,-12868.36606463,0.00022133,2]
[391372997,1760583042818,-3708.74007446,0.00022167,2]
[391372998,1760583042828,-305.23,0.00022167,2]
[391372999,1760583042837,-250.0,0.00022221,2]
[391373000,1760583042847,-302.34,0.00022261,2]
[391373001,1760583042857,-250.0,0.00022323,7]
[391373002,1760583042866,-150.83,0.00022456,2]
[391373003,1760583042875,-600.0,0.00022466,2]
[391373004,1760583042885,-156.79,0.00022611,2]
[391373005,1760583042894,-5231.0,0.000227,5]
[391373006,1760583042903,-181.43,0.00022752,2]
[391373007,1760583042913,-350.0,0.00022768,2]
[391373008,1760583042922,-318.34,0.00022783,2]
[391373009,1760583042931,-201.37228009,0.00022821,2]
[391373010,1760583042941,-160.47806306,0.00022883,2]
[391373011,1760583042950,-600.0,0.00023014,2]
[391373012,1760583042961,-450.0,0.00023316,2]
[391373013,1760583042971,-151.17,0.00023319,2]
[391373014,1760583042980,-12868.36606463,0.00023378,2]
[391373015,1760583042990,-151.0,0.00023378,7]
[391373017,1760583043343,-151.0,0.00023378,7]
[391373018,1760583043392,-151.0,0.00023378,7]
[391373019,1760583043402,-151.0,0.00023378,7]
[391373020,1760583043412,-151.0,0.00023378,7]
[391373021,1760583043421,-151.720123,0.00023378,7]
[391373022,1760583043430,-151.0,0.00023378,7]
[391373023,1760583043439,-151.0,0.00023378,7]
[391373024,1760583043449,-151.0,0.00023378,7]
[391373025,1760583043458,-26058.39,0.000234,7]
[391373026,1760583043469,-151.0,0.000234,7]
[391373027,1760583043478,-326.879962,0.000234,7]
[391373028,1760583043487,-326.879962,0.000234,7]
[391373029,1760583043497,-600.0,0.00023562,2]
[391373030,1760583043506,-168.79053038,0.00023691,2]
[391373031,1760583043515,-766.03545096,0.0002372,2]
[391373032,1760583043524,-1099.46,0.00023836,2]
[391373033,1760583043534,-550.0,0.00023864,2]
[391373034,1760583043543,-475.57272817,0.00023893,2]
[391373035,1760583043552,-3652.0,0.00024,2]
[391373036,1760583043561,-151.0,0.00024,7]
[391373037,1760583043570,-151.0,0.00024,7]
[391373038,1760583043579,-151.0,0.00024,7]
[391373039,1760583043588,-151.0,0.00024,7]
[391373040,1760583043597,-154.01447113,0.00024,7]
[391373041,1760583043607,-151.0,0.00024,7]
[391373042,1760583043616,-153.924731,0.00024,7]
[391373043,1760583043625,-151.0,0.00024,7]
[391373044,1760583043635,-222.606938,0.00024,7]
[391373045,1760583043644,-151.0,0.00024,7]
[391373046,1760583043653,-172.285979,0.00024,7]
[391373047,1760583043663,-161.419559,0.00024,7]
[391373048,1760583043672,-151.0,0.00024,7]
[391373049,1760583043681,-151.0,0.00024,7]
[391373050,1760583043691,-151.0,0.00024,7]
[391373051,1760583043700,-151.0,0.00024,7]
[391373052,1760583043710,-2442.7519867,0.00024007,2]
[391373053,1760583043719,-600.0,0.0002411,2]
[391373054,1760583043729,-201.37228009,0.00024154,2]
[391373055,1760583043738,-160.47806306,0.00024204,2]
[391373056,1760583043748,-230.53339206,0.00024314,2]
[391373057,1760583043757,-2000.0,0.000244,2]
[391373058,1760583043767,-151.0,0.000244,7]
[391373059,1760583043776,-157.406209,0.000244,7]
[391373060,1760583043785,-151.0,0.000244,7]
[391373061,1760583043795,-151.0,0.000244,7]
[391373062,1760583043804,-151.0,0.000244,7]
[391373063,1760583043814,-151.552827,0.000244,7]
[391373064,1760583043823,-151.0,0.000244,7]
[391373065,1760583043833,-151.0,0.000244,7]
[391373066,1760583043843,-26058.39,0.000244,7]
[391373067,1760583043854,-650.0,0.00024412,2]
[391373068,1760583043874,-1000.0,0.00024468,2]
[391373069,1760583043896,-160.622626,0.00024564,7]
[391373070,1760583043917,-151.0,0.00024564,7]
[391373071,1760583043938,-151.0,0.00024564,7]
[391373072,1760583043961,-212.344433,0.00024564,7]
[391373073,1760583043982,-151.0,0.00024564,7]
[391373074,1760583044004,-151.0,0.00024564,7]
[391373075,1760583044026,-151.0,0.00024564,7]
[391373076,1760583044047,-151.0,0.00024564,7]
[391373077,1760583044068,-151.0,0.00024564,7]
[391373078,1760583044091,-151.0,0.00024564,7]
[391373079,1760583044112,-151.264103,0.00024564,7]
[391373080,1760583044134,-151.797954,0.00024564,7]
[391373081,1760583044155,-151.0,0.00024564,7]
[391373082,1760583044178,-151.0,0.00024564,7]
[391373083,1760583044191,-661.11,0.00024567,2]
[391373084,1760583044200,-1000.0,0.00024578,2]
[391373085,1760583044210,-341.17063339,0.00024583,2]
[391373086,1760583044219,-181.43,0.00024612,2]
[391373087,1760583044228,-316.206409,0.00024622,7]
[391373088,1760583044237,-268.700044,0.00024622,7]
[391373089,1760583044246,-151.0,0.00024622,7]
[391373090,1760583044256,-316.206409,0.00024622,7]
[391373091,1760583044269,-268.700044,0.00024622,7]
[391373092,1760583044278,-151.0,0.00024622,7]
[391373093,1760583044287,-151.0,0.00024622,2]
[391373094,1760583044296,-316.206409,0.00024622,7]
[391373095,1760583044307,-268.700044,0.00024622,7]
[391373096,1760583044316,-151.0,0.00024622,7]
[391373097,1760583044325,-316.206409,0.00024622,7]
[391373098,1760583044335,-268.700044,0.00024622,7]
[391373099,1760583044345,-151.0,0.00024622,7]
[391373100,1760583044354,-12868.36606463,0.00024622,2]
[391373101,1760583044363,-151.0,0.00024627,7]
[391373102,1760583044373,-154.20991,0.00024627,7]
[391373103,1760583044382,-151.0,0.00024627,7]
[391373104,1760583044391,-152.038837,0.00024627,7]
[391373105,1760583044400,-151.00000014,0.00024627,7]
[391373106,1760583044410,-154.75471,0.00024627,7]
[391373107,1760583044419,-154.198005,0.00024627,7]
[391373108,1760583044428,-151.0,0.00024627,7]
[391373109,1760583044437,-600.0,0.00024658,2]
[391373110,1760583044447,-728.1528155,0.00024678,2]
[391373111,1760583044456,-156.587,0.00024678,2]
[391373112,1760583044467,-162.380719,0.00024678,2]
[391373113,1760583044476,-168.3888056,0.00024678,2]
[391373114,1760583044486,-174.61919141,0.00024678,2]
[391373115,1760583044495,-181.08010149,0.00024678,2]
[391373116,1760583044504,-187.78006525,0.00024678,2]
[391373117,1760583044513,-194.72792766,0.00024678,2]
[391373118,1760583044522,-201.93286099,0.00024678,2]
[391373119,1760583044531,-209.40437684,0.00024678,2]
[391373120,1760583044541,-277.35679052,0.00024678,2]
[391373121,1760583044550,-217.15233878,0.00024678,2]
[391373122,1760583044559,-225.18697532,0.00024678,2]
[391373123,1760583044569,-233.51889341,0.00024678,2]
[391373124,1760583044579,-242.15909246,0.00024678,2]
[391373125,1760583044588,-251.11897888,0.00024678,2]
[391373126,1760583044597,-260.4103811,0.00024678,2]
[391373127,1760583044606,-270.0455652,0.00024678,2]
[391373128,1760583044616,-280.03725112,0.00024678,2]
[391373129,1760583044625,-276.51338752,0.00024678,2]
[391373130,1760583044634,-163.792378,0.000247,7]
[391373131,1760583044643,-151.0,0.000247,7]
[391373132,1760583044653,-157.544389,0.000247,7]
[391373133,1760583044662,-151.0,0.000247,7]
[391373134,1760583044672,-151.675622,0.000247,7]
[391373135,1760583044682,-151.0,0.000247,7]
[391373136,1760583044691,-206.463717,0.000247,7]
[391373137,1760583044700,-151.949657,0.000247,7]
[391373138,1760583044710,-301.99999994,0.000247,7]
[391373139,1760583044721,-152.341927,0.000247,7]
[391373140,1760583044731,-151.726235,0.000247,7]
[391373141,1760583044741,-152.549496,0.000247,7]
[391373142,1760583044750,-187.361363,0.000247,7]
[391373143,1760583044759,-152.34069,0.000247,7]
[391373144,1760583044769,-152.103103,0.000247,7]
[391373145,1760583044778,-151.0,0.000247,7]
[391373146,1760583044788,-151.0,0.000247,7]
[391373147,1760583044798,-151.0,0.000247,7]
[391373148,1760583044807,-151.0,0.000247,7]
[391373149,1760583044816,-153.258972,0.000247,7]
[391373150,1760583044826,-151.0,0.000247,7]
[391373151,1760583044835,-151.0,0.000247,7]
[391373152,1760583044845,-152.083764,0.000247,7]
[391373153,1760583044856,-151.0,0.000247,7]
[391373154,1760583044866,-151.0,0.000247,7]
[391373155,1760583044876,-151.0,0.000247,7]
[391373156,1760583044885,-151.0,0.000247,7]
[391373157,1760583044895,-151.0,0.000247,7]
[391373158,1760583044904,-151.0,0.000247,7]
[391373159,1760583044913,-151.0,0.000247,7]
[391373160,1760583044923,-151.0,0.000247,7]
[391373161,1760583044932,-151.0,0.000247,7]
[391373162,1760583044941,-151.0,0.000247,7]
[391373163,1760583044950,-151.0,0.000247,7]
[391373164,1760583044960,-151.0,0.000247,7]
[391373165,1760583044971,-246.504812,0.000247,7]
[391373166,1760583044981,-153.254577,0.000247,7]
[391373167,1760583044990,-151.0,0.000247,7]
[391373168,1760583045000,-151.0,0.000247,7]
[391373169,1760583045009,-151.849203,0.000247,7]
[391373170,1760583045019,-151.80873,0.000247,7]
[391373171,1760583045028,-301.99999939,0.000247,7]
[391373172,1760583045038,-151.0,0.000247,7]
[391373173,1760583045047,-160.215553,0.000247,7]
[391373174,1760583045056,-154.39145,0.000247,7]
[391373175,1760583045065,-160.215553,0.000247,7]
[391373176,1760583045074,-151.0,0.000247,7]
[391373177,1760583045083,-160.215553,0.000247,7]
[391373178,1760583045093,-160.215553,0.000247,7]
[391373179,1760583045102,-151.0,0.000247,7]
[391373180,1760583045111,-1401.409064,0.000247,7]
[391373181,1760583045120,-1401.409064,0.000247,7]
[391373182,1760583045129,-1401.409064,0.000247,7]
[391373183,1760583045138,-1401.409064,0.000247,7]
[391373184,1760583045148,-151.0,0.000247,7]
[391373185,1760583045157,-151.0,0.000247,7]
[391373186,1760583045166,-151.349589,0.000247,7]
[391373187,1760583045175,-160.187536,0.000247,7]
[391373188,1760583045185,-151.0,0.000247,7]
[391373189,1760583045195,-1000.0,0.00024719,2]
[391373190,1760583045204,-291.11086972,0.0002479,2]
[391373191,1760583045214,-151.0,0.000248,7]
[391373192,1760583045223,-156.379893,0.000248,7]
[391373193,1760583045233,-151.0,0.000248,7]
[391373194,1760583045242,-151.0,0.000248,7]
[391373195,1760583045251,-193.90049,0.000248,7]
[391373196,1760583045262,-151.0,0.000248,7]
[391373197,1760583045273,-151.0,0.000248,7]
[391373198,1760583045282,-300.922611,0.000248,7]
[391373199,1760583045291,-151.0,0.000248,7]
[391373200,1760583045301,-151.0,0.000248,7]
[391373201,1760583045310,-160.215553,0.000248,7]
[391373202,1760583045319,-160.215553,0.000248,7]
[391373203,1760583045329,-151.0,0.000248,7]
[391373204,1760583045339,-160.215553,0.000248,7]
[391373205,1760583045348,-160.215553,0.000248,7]
[391373206,1760583045357,-151.0,0.000248,7]
[391373207,1760583045367,-1401.409064,0.000248,7]
[391373208,1760583045376,-1401.409064,0.000248,7]
[391373209,1760583045386,-1401.409064,0.000248,7]
[391373210,1760583045395,-1401.409064,0.000248,7]
[391373211,1760583045404,-162.161218,0.000248,7]
[391373212,1760583045413,-151.0,0.000248,7]
[391373213,1760583045423,-153.55867,0.000248,7]
[391373214,1760583045433,-151.0,0.000248,7]
[391373215,1760583045443,-151.0,0.000248,7]
[391373216,1760583045452,-154.687895,0.000248,7]
[391373217,1760583045461,-151.0,0.000248,7]
[391373218,1760583045471,-151.0,0.000248,7]
[391373219,1760583045481,-151.0,0.000248,7]
[391373220,1760583045490,-211.979363,0.000248,7]
[391373221,1760583045499,-494371.351498,0.000248,3]
[391373222,1760583045508,-151.0,0.000248,7]
[391373223,1760583045517,-151.0,0.000248,7]
[391373224,1760583045526,-297.061512,0.000248,7]
[391373225,1760583045536,-151.0,0.000248,7]
[391373226,1760583045544,-151.0,0.000248,7]
[391373227,1760583045554,-151.0,0.000248,7]
[391373228,1760583045563,-151.0,0.000248,7]
[391373229,1760583045572,-156.428586,0.000248,7]
[391373230,1760583045582,-151.0,0.000248,7]
[391373231,1760583045591,-316.206409,0.000248,7]
[391373232,1760583045600,-268.700044,0.000248,7]
[391373233,1760583045610,-151.0,0.000248,7]
[391373234,1760583045620,-316.206409,0.000248,7]
[391373235,1760583045629,-268.700044,0.000248,7]
[391373236,1760583045639,-151.0,0.000248,7]
[391373237,1760583045648,-151.0,0.000248,2]
[391373238,1760583045657,-268.700044,0.000248,7]
[391373239,1760583045667,-316.206409,0.000248,7]
[391373240,1760583045676,-151.0,0.000248,7]
[391373241,1760583045687,-316.206409,0.000248,7]
[391373242,1760583045697,-268.700044,0.000248,7]
[391373243,1760583045709,-153.626116,0.000248,7]
[391373244,1760583045720,-326.879962,0.000248,7]
[391373245,1760583045729,-326.879962,0.000248,7]
[391373246,1760583045738,-335.60949321,0.00024807,2]
[391373247,1760583045748,-2426.95,0.00024827,2]
[391373248,1760583045758,-991.44516061,0.00024867,2]
[391373249,1760583045768,-1425.0,0.00024868,2]
[391373250,1760583045777,-32774.46349935,0.000249,9]
[391373251,1760583045787,-151.0,0.000249,7]
[391373252,1760583045796,-151.0,0.000249,7]
[391373254,1760583045805,-151.0,0.000249,7]
[391373255,1760583045814,-154.005631,0.000249,7]
[391373256,1760583045823,-151.0,0.000249,7]
[391373257,1760583045832,-151.0,0.000249,7]